[Event "Titled Tuesday Blitz February 07 Early 2023"]
[White "Sovetbekova, Nurai"]
[Black "Ronka, Erik"]
[WhiteFideId "13801910"]
[BlackFideId "505080"]
[WhiteElo "1764"]
[BlackElo "2276"]
[Result "1-0"]
[Round "05"]
[TimeControl "180+2"]
[Date "2023.02.07"]
[WhiteClock "0:00:06"]
[BlackClock "0:00:06"]

1. d4 {[%clk 0:02:55]}  d5 {[%clk 0:02:59]} 2. c4 {[%clk 0:02:55]}  c6 {[%clk 0:02:54]} 3. Nf3 {[%clk 0:02:54]}  Nf6 {[%clk 0:02:53]} 4. g3 {[%clk 0:02:51]}  dxc4 {[%clk 0:02:42]} 5. Bg2 {[%clk 0:02:50]}  g6 {[%clk 0:02:41]} 6. O-O {[%clk 0:02:50]}  Bg7 {[%clk 0:02:41]} 7. a4 {[%clk 0:02:49]}  O-O {[%clk 0:02:40]} 8. Na3 {[%clk 0:02:49]}  c5 {[%clk 0:02:31]} 9. Nxc4 {[%clk 0:02:38]}  cxd4 {[%clk 0:02:22]} 10. Nxd4 {[%clk 0:02:39]}  Nbd7 {[%clk 0:01:59]} 11. b3 {[%clk 0:02:25]}  Ne8 {[%clk 0:01:27]} 12. Bb2 {[%clk 0:02:18]}  Nc5 {[%clk 0:01:22]} 13. e3 {[%clk 0:02:10]}  Nc7 {[%clk 0:00:47]} 14. Qc2 {[%clk 0:02:05]}  N7e6 {[%clk 0:00:41]} 15. Rfd1 {[%clk 0:01:55]}  Nxd4 {[%clk 0:00:35]} 16. Bxd4 {[%clk 0:01:54]}  Bxd4 {[%clk 0:00:34]} 17. Rxd4 {[%clk 0:01:55]}  Qe8 {[%clk 0:00:32]} 18. Rad1 {[%clk 0:01:51]}  Be6 {[%clk 0:00:24]} 19. Qc3 {[%clk 0:01:36]}  Rc8 {[%clk 0:00:24]} 20. Qb4 {[%clk 0:01:31]}  b6 {[%clk 0:00:20]} 21. h4 {[%clk 0:01:29]}  f6 {[%clk 0:00:19]} 22. Qc3 {[%clk 0:01:01]}  Qf7 {[%clk 0:00:19]} 23. Bd5 {[%clk 0:00:57]}  Bxd5 {[%clk 0:00:18]} 24. Rxd5 {[%clk 0:00:58]}  Ne6 {[%clk 0:00:19]} 25. Rd7 {[%clk 0:00:48]}  a5 {[%clk 0:00:17]} 26. Qb2 {[%clk 0:00:40]}  Rb8 {[%clk 0:00:16]} 27. Qa3 {[%clk 0:00:36]}  Nc5 {[%clk 0:00:16]} 28. R7d4 {[%clk 0:00:31]}  Rfc8 {[%clk 0:00:15]} 29. Qc1 {[%clk 0:00:23]}  Qe6 {[%clk 0:00:15]} 30. Qc3 {[%clk 0:00:21]}  Kf7 {[%clk 0:00:15]} 31. Kg2 {[%clk 0:00:21]}  Nb7 {[%clk 0:00:12]} 32. Qd2 {[%clk 0:00:17]}  Nc5 {[%clk 0:00:12]} 33. Qc3 {[%clk 0:00:17]}  Qc6+ {[%clk 0:00:12]} 34. Kg1 {[%clk 0:00:16]}  b5 {[%clk 0:00:12]} 35. axb5 {[%clk 0:00:16]}  Qxb5 {[%clk 0:00:13]} 36. Qxa5 {[%clk 0:00:15]}  Qxb3 {[%clk 0:00:12]} 37. Qa7 {[%clk 0:00:08]}  Ne6 {[%clk 0:00:08]} 38. Nd6+ {[%clk 0:00:08]}  Kg7 {[%clk 0:00:06]} 39. Qxe7+ {[%clk 0:00:07]}  Kh6 {[%clk 0:00:06]} 40. Nxc8 {[%clk 0:00:07]}  Rxc8 {[%clk 0:00:07]} 41. Rd7 {[%clk 0:00:07]}  Nf8 {[%clk 0:00:06]} 42. Qg7+ {[%clk 0:00:06]}  Kh5 {[%clk 0:00:05]} 43. R7d5+ {[%clk 0:00:07]}  f5 {[%clk 0:00:06]} 44. Rxf5+ {[%clk 0:00:05]}  gxf5 {[%clk 0:00:06]} 45. Qg5# {[%clk 0:00:06]} 1-0


[Site "https://www.chess.com"]

[Event "Titled Tuesday Blitz February 07 Early 2023"]
[White "Stolz, Mike"]
[Black "Goncalves, Davi Sulzbacher"]
[WhiteFideId "4617134"]
[BlackFideId "2154510"]
[WhiteElo "2330"]
[BlackElo "2282"]
[Result "0-1"]
[Round "05"]
[TimeControl "180+2"]
[Date "2023.02.07"]
[WhiteClock "0:00:16"]
[BlackClock "0:00:17"]

1. e4 {[%clk 0:02:59]}  c5 {[%clk 0:02:46]} 2. Nf3 {[%clk 0:02:59]}  d6 {[%clk 0:02:46]} 3. Bb5+ {[%clk 0:02:59]}  Nd7 {[%clk 0:02:42]} 4. d4 {[%clk 0:02:59]}  a6 {[%clk 0:02:42]} 5. Be2 {[%clk 0:02:57]}  Ngf6 {[%clk 0:02:36]} 6. Nc3 {[%clk 0:02:56]}  cxd4 {[%clk 0:02:36]} 7. Qxd4 {[%clk 0:02:57]}  e5 {[%clk 0:02:36]} 8. Qd3 {[%clk 0:02:56]}  Nc5 {[%clk 0:02:34]} 9. Qe3 {[%clk 0:02:49]}  Be7 {[%clk 0:02:28]} 10. O-O {[%clk 0:02:48]}  O-O {[%clk 0:02:28]} 11. h3 {[%clk 0:02:48]}  b5 {[%clk 0:02:27]} 12. Rd1 {[%clk 0:02:48]}  Bb7 {[%clk 0:02:25]} 13. Nxe5 {[%clk 0:02:45]}  b4 {[%clk 0:02:16]} 14. Nb1 {[%clk 0:02:15]}  Ncxe4 {[%clk 0:02:11]} 15. Bf3 {[%clk 0:02:08]}  Qc7 {[%clk 0:02:03]} 16. Nd3 {[%clk 0:01:59]}  d5 {[%clk 0:01:48]} 17. Qe2 {[%clk 0:01:48]}  Rac8 {[%clk 0:01:45]} 18. Ne1 {[%clk 0:01:42]}  Bc5 {[%clk 0:01:43]} 19. Be3 {[%clk 0:01:37]}  Rfe8 {[%clk 0:01:34]} 20. Bxc5 {[%clk 0:01:34]}  Nc3 {[%clk 0:01:23]} 21. Nxc3 {[%clk 0:01:06]}  Rxe2 {[%clk 0:01:21]} 22. Nxe2 {[%clk 0:01:05]}  Qxc5 {[%clk 0:01:21]} 23. Nd4 {[%clk 0:01:04]}  a5 {[%clk 0:01:17]} 24. h4 {[%clk 0:00:58]}  h5 {[%clk 0:01:12]} 25. g3 {[%clk 0:00:59]}  g6 {[%clk 0:01:11]} 26. Ng2 {[%clk 0:00:59]}  Nd7 {[%clk 0:01:04]} 27. Nf4 {[%clk 0:00:54]}  Ne5 {[%clk 0:01:03]} 28. Bg2 {[%clk 0:00:50]}  Ng4 {[%clk 0:01:02]} 29. Rac1 {[%clk 0:00:49]}  Re8 {[%clk 0:00:58]} 30. Bf3 {[%clk 0:00:48]}  Ne5 {[%clk 0:00:54]} 31. Bg2 {[%clk 0:00:48]}  Nc4 {[%clk 0:00:54]} 32. Nb3 {[%clk 0:00:45]}  Qa7 {[%clk 0:00:47]} 33. Bxd5 {[%clk 0:00:43]}  Nxb2 {[%clk 0:00:36]} 34. Rd2 {[%clk 0:00:36]}  Bxd5 {[%clk 0:00:31]} 35. Nxd5 {[%clk 0:00:37]}  Kg7 {[%clk 0:00:28]} 36. c4 {[%clk 0:00:34]}  bxc3 {[%clk 0:00:23]} 37. Nxc3 {[%clk 0:00:32]}  Nc4 {[%clk 0:00:22]} 38. Nb5 {[%clk 0:00:21]}  Qb8 {[%clk 0:00:20]} 39. Rxc4 {[%clk 0:00:19]}  Qxb5 {[%clk 0:00:20]} 40. Rc5 {[%clk 0:00:19]}  Qb4 {[%clk 0:00:20]} 41. Rxa5 {[%clk 0:00:16]}  Re1+ {[%clk 0:00:18]} 42. Kh2 {[%clk 0:00:16]}  Rb1 {[%clk 0:00:18]} 43. Rad5 {[%clk 0:00:16]}  Qe4 {[%clk 0:00:18]} 44. R5d4 {[%clk 0:00:16]}  Qh1# {[%clk 0:00:17]} 0-1


[Site "https://www.chess.com"]

[Event "Titled Tuesday Blitz February 07 Early 2023"]
[White "Qashashvili, Alexandre"]
[Black "Fan_Of_Chucky"]
[WhiteFideId "13600842"]
[WhiteElo "2505"]
[BlackElo "2269"]
[Result "0-1"]
[Round "05"]
[TimeControl "180+2"]
[Date "2023.02.07"]
[WhiteClock "0:00:23"]
[BlackClock "0:01:23"]

1. e4 {[%clk 0:02:16]}  c5 {[%clk 0:02:52]} 2. Nc3 {[%clk 0:02:16]}  Nc6 {[%clk 0:02:52]} 3. Nf3 {[%clk 0:02:15]}  a6 {[%clk 0:02:49]} 4. d4 {[%clk 0:02:15]}  cxd4 {[%clk 0:02:48]} 5. Nxd4 {[%clk 0:02:16]}  e5 {[%clk 0:02:44]} 6. Nxc6 {[%clk 0:02:15]}  dxc6 {[%clk 0:02:40]} 7. Qxd8+ {[%clk 0:02:14]}  Kxd8 {[%clk 0:02:41]} 8. Bg5+ {[%clk 0:02:14]}  Nf6 {[%clk 0:02:36]} 9. O-O-O+ {[%clk 0:02:14]}  Kc7 {[%clk 0:02:35]} 10. Bxf6 {[%clk 0:02:11]}  gxf6 {[%clk 0:02:34]} 11. Bc4 {[%clk 0:02:12]}  Rg8 {[%clk 0:02:30]} 12. g3 {[%clk 0:02:07]}  Bc5 {[%clk 0:02:25]} 13. Rhf1 {[%clk 0:02:03]}  Bh3 {[%clk 0:02:20]} 14. Bxf7 {[%clk 0:01:49]}  Rgf8 {[%clk 0:02:14]} 15. Bh5 {[%clk 0:01:48]}  Bxf1 {[%clk 0:02:11]} 16. Rxf1 {[%clk 0:01:49]}  f5 {[%clk 0:02:08]} 17. exf5 {[%clk 0:01:47]}  Rxf5 {[%clk 0:02:08]} 18. f4 {[%clk 0:01:47]}  Rxh5 {[%clk 0:01:58]} 19. fxe5 {[%clk 0:00:56]}  Rf8 {[%clk 0:01:55]} 20. Re1 {[%clk 0:00:49]}  Rxh2 {[%clk 0:01:53]} 21. Ne4 {[%clk 0:00:42]}  Bf2 {[%clk 0:01:39]} 22. Rd1 {[%clk 0:00:38]}  Be3+ {[%clk 0:01:34]} 23. Kb1 {[%clk 0:00:35]}  Re8 {[%clk 0:01:29]} 24. Nf6 {[%clk 0:00:31]}  Rxe5 {[%clk 0:01:20]} 25. Ng4 {[%clk 0:00:29]}  Rd5 {[%clk 0:01:21]} 26. Nxe3 {[%clk 0:00:24]}  Rxd1+ {[%clk 0:01:18]} 27. Nxd1 {[%clk 0:00:25]}  Rh1 {[%clk 0:01:18]} 28. Kc1 {[%clk 0:00:22]}  Rg1 {[%clk 0:01:19]} 29. Kd2 {[%clk 0:00:19]}  Rxg3 {[%clk 0:01:19]} 30. Ne3 {[%clk 0:00:20]}  Rxe3 {[%clk 0:01:17]} 31. Kxe3 {[%clk 0:00:20]}  Kd6 {[%clk 0:01:18]} 32. Ke4 {[%clk 0:00:19]}  Ke6 {[%clk 0:01:18]} 33. Kf4 {[%clk 0:00:19]}  Kd5 {[%clk 0:01:18]} 34. Kg5 {[%clk 0:00:16]}  Kd4 {[%clk 0:01:18]} 35. Kf4 {[%clk 0:00:16]}  h5 {[%clk 0:01:17]} 36. a3 {[%clk 0:00:16]}  h4 {[%clk 0:01:16]} 37. Kg4 {[%clk 0:00:16]}  Ke3 {[%clk 0:01:17]} 38. c4 {[%clk 0:00:16]}  Kd3 {[%clk 0:01:16]} 39. c5 {[%clk 0:00:16]}  Kc4 {[%clk 0:01:16]} 40. Kxh4 {[%clk 0:00:17]}  Kxc5 {[%clk 0:01:16]} 41. Kg3 {[%clk 0:00:17]}  Kc4 {[%clk 0:01:17]} 42. Kf4 {[%clk 0:00:18]}  Kb3 {[%clk 0:01:18]} 43. Ke5 {[%clk 0:00:19]}  Kxb2 {[%clk 0:01:19]} 44. Kd6 {[%clk 0:00:19]}  Kxa3 {[%clk 0:01:19]} 45. Kc7 {[%clk 0:00:20]}  b5 {[%clk 0:01:19]} 46. Kxc6 {[%clk 0:00:20]}  b4 {[%clk 0:01:20]} 47. Kb6 {[%clk 0:00:20]}  b3 {[%clk 0:01:21]} 48. Kxa6 {[%clk 0:00:21]}  b2 {[%clk 0:01:22]} 49. Kb5 {[%clk 0:00:22]}  b1=Q+ {[%clk 0:01:23]} 50. Kc4 {[%clk 0:00:22]}  Qb3+ {[%clk 0:01:23]} 51. Kd4 {[%clk 0:00:22]}  Qc2 {[%clk 0:01:23]} 52. Ke5 {[%clk 0:00:21]}  Qd3 {[%clk 0:01:23]} 53. Kf4 {[%clk 0:00:22]}  Qe2 {[%clk 0:01:23]} 54. Kf5 {[%clk 0:00:22]}  Qe3 {[%clk 0:01:24]} 55. Kf6 {[%clk 0:00:23]}  Qe4 {[%clk 0:01:24]} 56. Kf7 {[%clk 0:00:23]}  Qc6 {[%clk 0:01:23]} 57. Kg7 {[%clk 0:00:23]}  Qe6 {[%clk 0:01:23]} 58. Kf8 {[%clk 0:00:23]}  Qd7 {[%clk 0:01:23]} 0-1


[Site "https://www.chess.com"]

[Event "Titled Tuesday Blitz February 07 Early 2023"]
[White "Kuchava, Ana"]
[Black "Alfaro, William"]
[WhiteFideId "13605348"]
[BlackFideId "6100457"]
[WhiteElo "2101"]
[BlackElo "2134"]
[Result "1/2-1/2"]
[Round "05"]
[TimeControl "180+2"]
[Date "2023.02.07"]
[WhiteClock "0:00:36"]
[BlackClock "0:01:31"]

1. d4 {[%clk 0:03:00]}  Nf6 {[%clk 0:02:58]} 2. Nf3 {[%clk 0:03:00]}  g6 {[%clk 0:02:56]} 3. c4 {[%clk 0:02:56]}  Bg7 {[%clk 0:02:55]} 4. Nc3 {[%clk 0:02:56]}  d6 {[%clk 0:02:55]} 5. e4 {[%clk 0:02:56]}  O-O {[%clk 0:02:52]} 6. Be2 {[%clk 0:02:55]}  e5 {[%clk 0:02:52]} 7. O-O {[%clk 0:02:54]}  Nc6 {[%clk 0:02:50]} 8. Be3 {[%clk 0:02:52]}  Ng4 {[%clk 0:02:49]} 9. Bg5 {[%clk 0:02:51]}  f6 {[%clk 0:02:48]} 10. Bc1 {[%clk 0:02:51]}  Nh6 {[%clk 0:02:46]} 11. h3 {[%clk 0:02:21]}  g5 {[%clk 0:02:45]} 12. d5 {[%clk 0:02:18]}  Ne7 {[%clk 0:02:44]} 13. Ne1 {[%clk 0:02:16]}  Ng6 {[%clk 0:02:41]} 14. Bg4 {[%clk 0:02:09]}  f5 {[%clk 0:02:39]} 15. exf5 {[%clk 0:02:07]}  Nxf5 {[%clk 0:02:38]} 16. Ne4 {[%clk 0:02:05]}  h6 {[%clk 0:02:34]} 17. Qd3 {[%clk 0:01:54]}  b6 {[%clk 0:02:30]} 18. g3 {[%clk 0:01:19]}  Nd4 {[%clk 0:02:25]} 19. Nxg5 {[%clk 0:01:15]}  Bxg4 {[%clk 0:02:16]} 20. hxg4 {[%clk 0:01:13]}  hxg5 {[%clk 0:02:13]} 21. Qxg6 {[%clk 0:01:12]}  Rf6 {[%clk 0:02:11]} 22. Qxg5 {[%clk 0:01:10]}  Qf8 {[%clk 0:02:11]} 23. Be3 {[%clk 0:01:07]}  Ne2+ {[%clk 0:02:03]} 24. Kg2 {[%clk 0:01:06]}  Qf7 {[%clk 0:02:02]} 25. Qh5 {[%clk 0:00:59]}  Qxh5 {[%clk 0:01:52]} 26. gxh5 {[%clk 0:01:00]}  Raf8 {[%clk 0:01:52]} 27. Nd3 {[%clk 0:00:53]}  Bh6 {[%clk 0:01:50]} 28. Bxh6 {[%clk 0:00:51]}  Rxh6 {[%clk 0:01:49]} 29. Rh1 {[%clk 0:00:48]}  Kh7 {[%clk 0:01:46]} 30. Rh4 {[%clk 0:00:46]}  Rg8 {[%clk 0:01:45]} 31. Re1 {[%clk 0:00:43]}  Nd4 {[%clk 0:01:44]} 32. Nxe5 {[%clk 0:00:31]}  dxe5 {[%clk 0:01:43]} 33. Rxe5 {[%clk 0:00:32]}  Nc2 {[%clk 0:01:38]} 34. a3 {[%clk 0:00:24]}  Rg7 {[%clk 0:01:36]} 35. Re2 {[%clk 0:00:24]}  Na1 {[%clk 0:01:34]} 36. b4 {[%clk 0:00:20]}  a5 {[%clk 0:01:31]} 37. Ra2 {[%clk 0:00:17]}  Nb3 {[%clk 0:01:30]} 38. Rb2 {[%clk 0:00:11]}  a4 {[%clk 0:01:30]} 39. g4 {[%clk 0:00:09]}  Rf6 {[%clk 0:01:25]} 40. Re2 {[%clk 0:00:08]}  Kh6 {[%clk 0:01:25]} 41. Re6 {[%clk 0:00:08]}  Rxe6 {[%clk 0:01:24]} 42. dxe6 {[%clk 0:00:09]}  Re7 {[%clk 0:01:24]} 43. f4 {[%clk 0:00:09]}  Rxe6 {[%clk 0:01:21]} 44. g5+ {[%clk 0:00:09]}  Kh7 {[%clk 0:01:21]} 45. g6+ {[%clk 0:00:07]}  Kh6 {[%clk 0:01:20]} 46. f5 {[%clk 0:00:07]}  Re2+ {[%clk 0:01:18]} 47. Kf3 {[%clk 0:00:07]}  Re1 {[%clk 0:01:17]} 48. Rh2 {[%clk 0:00:05]}  Rf1+ {[%clk 0:01:14]} 49. Rf2 {[%clk 0:00:05]}  Nd4+ {[%clk 0:01:15]} 50. Ke3 {[%clk 0:00:04]}  Rxf2 {[%clk 0:01:16]} 51. Kxf2 {[%clk 0:00:04]}  Nxf5 {[%clk 0:01:17]} 52. c5 {[%clk 0:00:04]}  Ng7 {[%clk 0:01:15]} 53. cxb6 {[%clk 0:00:03]}  cxb6 {[%clk 0:01:11]} 54. Ke3 {[%clk 0:00:04]}  Nxh5 {[%clk 0:01:11]} 55. Kd4 {[%clk 0:00:04]}  Kxg6 {[%clk 0:01:11]} 56. Kc4 {[%clk 0:00:05]}  Nf6 {[%clk 0:01:10]} 57. Kb5 {[%clk 0:00:06]}  Nd7 {[%clk 0:01:10]} 58. Kxa4 {[%clk 0:00:06]}  Kf6 {[%clk 0:01:10]} 59. Kb5 {[%clk 0:00:07]}  Ke6 {[%clk 0:01:11]} 60. a4 {[%clk 0:00:08]}  Kd6 {[%clk 0:01:12]} 61. a5 {[%clk 0:00:09]}  Kc7 {[%clk 0:01:12]} 62. axb6+ {[%clk 0:00:09]}  Nxb6 {[%clk 0:01:13]} 63. Kc5 {[%clk 0:00:09]}  Kb7 {[%clk 0:01:14]} 64. b5 {[%clk 0:00:10]}  Na4+ {[%clk 0:01:14]} 65. Kb4 {[%clk 0:00:11]}  Nb2 {[%clk 0:01:15]} 66. Kc3 {[%clk 0:00:11]}  Nd1+ {[%clk 0:01:13]} 67. Kd2 {[%clk 0:00:12]}  Nf2 {[%clk 0:01:14]} 68. Ke2 {[%clk 0:00:13]}  Ng4 {[%clk 0:01:14]} 69. Kf3 {[%clk 0:00:12]}  Ne5+ {[%clk 0:01:15]} 70. Kf4 {[%clk 0:00:13]}  Nd7 {[%clk 0:01:15]} 71. Kf5 {[%clk 0:00:14]}  Kb6 {[%clk 0:01:16]} 72. Kg4 {[%clk 0:00:14]}  Nc5 {[%clk 0:01:17]} 73. Kh4 {[%clk 0:00:15]}  Ne6 {[%clk 0:01:17]} 74. Kh3 {[%clk 0:00:16]}  Nd4 {[%clk 0:01:17]} 75. Kg3 {[%clk 0:00:17]}  Ne6 {[%clk 0:01:18]} 76. Kg2 {[%clk 0:00:18]}  Nc5 {[%clk 0:01:19]} 77. Kf2 {[%clk 0:00:19]}  Nd7 {[%clk 0:01:19]} 78. Kg3 {[%clk 0:00:19]}  Nb8 {[%clk 0:01:20]} 79. Kg4 {[%clk 0:00:20]}  Nd7 {[%clk 0:01:20]} 80. Kg5 {[%clk 0:00:20]}  Nf8 {[%clk 0:01:20]} 81. Kf6 {[%clk 0:00:20]}  Nh7+ {[%clk 0:01:21]} 82. Ke7 {[%clk 0:00:21]}  Ng5 {[%clk 0:01:21]} 83. Kd7 {[%clk 0:00:22]}  Nf3 {[%clk 0:01:21]} 84. Kd6 {[%clk 0:00:23]}  Nd4 {[%clk 0:01:21]} 85. Kd5 {[%clk 0:00:23]}  Nb3 {[%clk 0:01:22]} 86. Kc4 {[%clk 0:00:24]}  Na5+ {[%clk 0:01:23]} 87. Kd4 {[%clk 0:00:25]}  Nb7 {[%clk 0:01:23]} 88. Kc3 {[%clk 0:00:26]}  Nd8 {[%clk 0:01:24]} 89. Kb4 {[%clk 0:00:27]}  Ne6 {[%clk 0:01:24]} 90. Kc4 {[%clk 0:00:28]}  Kb7 {[%clk 0:01:24]} 91. Kd5 {[%clk 0:00:29]}  Nc7+ {[%clk 0:01:24]} 92. Kd6 {[%clk 0:00:29]}  Kb6 {[%clk 0:01:25]} 93. Kd7 {[%clk 0:00:29]}  Nd5 {[%clk 0:01:25]} 94. Kd6 {[%clk 0:00:29]}  Nc3 {[%clk 0:01:26]} 95. Ke5 {[%clk 0:00:30]}  Na4 {[%clk 0:01:26]} 96. Kd4 {[%clk 0:00:30]}  Nc5 {[%clk 0:01:27]} 97. Kc4 {[%clk 0:00:31]}  Nd7 {[%clk 0:01:28]} 98. Kd5 {[%clk 0:00:32]}  Nb8 {[%clk 0:01:29]} 99. Kd6 {[%clk 0:00:33]}  Kb7 {[%clk 0:01:28]} 100. Ke7 {[%clk 0:00:34]}  Kc7 {[%clk 0:01:27]} 101. Ke6 {[%clk 0:00:34]}  Nd7 {[%clk 0:01:26]} 102. Kd5 {[%clk 0:00:35]}  Kb6 {[%clk 0:01:25]} 103. Kd6 {[%clk 0:00:35]}  Nf8 {[%clk 0:01:25]} 104. Kd5 {[%clk 0:00:35]}  Ng6 {[%clk 0:01:26]} 105. Kc4 {[%clk 0:00:35]}  Nh4 {[%clk 0:01:26]} 106. Kb4 {[%clk 0:00:36]}  Nf5 {[%clk 0:01:27]} 107. Kc3 {[%clk 0:00:36]}  Ne3 {[%clk 0:01:28]} 108. Kb3 {[%clk 0:00:36]}  Nf5 {[%clk 0:01:29]} 109. Kb4 {[%clk 0:00:36]}  Nd6 {[%clk 0:01:30]} 110. Kc3 {[%clk 0:00:36]}  Nxb5+ {[%clk 0:01:31]} 1/2-1/2


[Site "https://www.chess.com"]

[Event "Titled Tuesday Blitz February 07 Early 2023"]
[White "Zanette, Edgard Vinicius"]
[Black "Winkels, Marcel"]
[WhiteFideId "2109263"]
[BlackFideId "1003887"]
[WhiteElo "2085"]
[BlackElo "1960"]
[Result "1-0"]
[Round "05"]
[TimeControl "180+2"]
[Date "2023.02.07"]
[WhiteClock "0:00:46"]
[BlackClock "0:00:04"]

1. e4 {[%clk 0:03:00]}  c5 {[%clk 0:02:56]} 2. Nc3 {[%clk 0:02:59]}  e6 {[%clk 0:02:56]} 3. f4 {[%clk 0:02:59]}  Nc6 {[%clk 0:02:56]} 4. Nf3 {[%clk 0:02:59]}  g6 {[%clk 0:02:55]} 5. Bb5 {[%clk 0:02:59]}  Nd4 {[%clk 0:02:53]} 6. Nxd4 {[%clk 0:02:57]}  cxd4 {[%clk 0:02:52]} 7. Ne2 {[%clk 0:02:58]}  Bg7 {[%clk 0:02:51]} 8. Bd3 {[%clk 0:02:58]}  Ne7 {[%clk 0:02:49]} 9. O-O {[%clk 0:02:58]}  O-O {[%clk 0:02:46]} 10. a3 {[%clk 0:02:57]}  b6 {[%clk 0:02:39]} 11. b4 {[%clk 0:02:53]}  Bb7 {[%clk 0:02:38]} 12. Bb2 {[%clk 0:02:52]}  f5 {[%clk 0:01:58]} 13. e5 {[%clk 0:02:44]}  d6 {[%clk 0:01:57]} 14. Bxd4 {[%clk 0:02:42]}  dxe5 {[%clk 0:01:56]} 15. Bxe5 {[%clk 0:02:23]}  Bxe5 {[%clk 0:01:55]} 16. fxe5 {[%clk 0:02:23]}  Qd5 {[%clk 0:01:55]} 17. Nf4 {[%clk 0:02:23]}  Qxe5 {[%clk 0:01:54]} 18. Qe1 {[%clk 0:02:21]}  Nc6 {[%clk 0:01:35]} 19. Nxe6 {[%clk 0:02:15]}  Rfe8 {[%clk 0:01:33]} 20. Qxe5 {[%clk 0:02:13]}  Nxe5 {[%clk 0:01:32]} 21. Nc7 {[%clk 0:02:14]}  Nxd3 {[%clk 0:01:31]} 22. Nxe8 {[%clk 0:02:05]}  Rxe8 {[%clk 0:01:26]} 23. cxd3 {[%clk 0:02:03]}  Re2 {[%clk 0:01:26]} 24. Rf2 {[%clk 0:02:02]}  Re6 {[%clk 0:01:25]} 25. Rc1 {[%clk 0:02:00]}  Rd6 {[%clk 0:01:24]} 26. Rc7 {[%clk 0:01:59]}  Ba6 {[%clk 0:01:21]} 27. Rxa7 {[%clk 0:01:55]}  Bxd3 {[%clk 0:01:20]} 28. h3 {[%clk 0:01:47]}  h5 {[%clk 0:01:19]} 29. Rf3 {[%clk 0:01:37]}  Be4 {[%clk 0:01:14]} 30. Rc3 {[%clk 0:01:36]}  Bc6 {[%clk 0:00:42]} 31. b5 {[%clk 0:01:32]}  Be8 {[%clk 0:00:38]} 32. Rc8 {[%clk 0:01:28]}  Kf8 {[%clk 0:00:37]} 33. Raa8 {[%clk 0:01:27]}  Re6 {[%clk 0:00:37]} 34. a4 {[%clk 0:01:21]}  Kf7 {[%clk 0:00:36]} 35. Kf2 {[%clk 0:01:11]}  g5 {[%clk 0:00:30]} 36. d4 {[%clk 0:01:08]}  Re4 {[%clk 0:00:25]} 37. d5 {[%clk 0:01:07]}  Bd7 {[%clk 0:00:22]} 38. Rc7 {[%clk 0:01:04]}  Ke7 {[%clk 0:00:16]} 39. Raa7 {[%clk 0:01:02]}  Kd6 {[%clk 0:00:15]} 40. Rxd7+ {[%clk 0:01:01]}  Kc5 {[%clk 0:00:16]} 41. d6 {[%clk 0:00:58]}  Rc4 {[%clk 0:00:12]} 42. Rac7+ {[%clk 0:00:57]}  Kd5 {[%clk 0:00:11]} 43. Rxc4 {[%clk 0:00:58]}  Kxc4 {[%clk 0:00:12]} 44. Rf7 {[%clk 0:00:56]}  Kd5 {[%clk 0:00:12]} 45. d7 {[%clk 0:00:56]}  Ke6 {[%clk 0:00:13]} 46. d8=Q {[%clk 0:00:55]}  Kxf7 {[%clk 0:00:13]} 47. Qxg5 {[%clk 0:00:55]}  Ke6 {[%clk 0:00:14]} 48. Qxh5 {[%clk 0:00:55]}  Ke5 {[%clk 0:00:14]} 49. Qg6 {[%clk 0:00:55]}  f4 {[%clk 0:00:13]} 50. Qxb6 {[%clk 0:00:54]}  Ke4 {[%clk 0:00:12]} 51. Qe6+ {[%clk 0:00:53]}  Kd4 {[%clk 0:00:12]} 52. Qd6+ {[%clk 0:00:53]}  Ke4 {[%clk 0:00:12]} 53. h4 {[%clk 0:00:53]}  Kf5 {[%clk 0:00:11]} 54. h5 {[%clk 0:00:50]}  Kg5 {[%clk 0:00:11]} 55. h6 {[%clk 0:00:50]}  Kh5 {[%clk 0:00:10]} 56. h7 {[%clk 0:00:51]}  Kg5 {[%clk 0:00:11]} 57. h8=Q {[%clk 0:00:50]}  Kg4 {[%clk 0:00:05]} 58. Qg7+ {[%clk 0:00:49]}  Kf5 {[%clk 0:00:04]} 59. Qf7+ {[%clk 0:00:46]}  Kg5 {[%clk 0:00:04]} 60. Qdg6+ {[%clk 0:00:46]} 1-0


[Site "https://www.chess.com"]

[Event "Titled Tuesday Blitz February 07 Early 2023"]
[White "Timofeev, Artyom"]
[Black "So, Wesley"]
[WhiteFideId "4140419"]
[BlackFideId "5202213"]
[WhiteElo "2567"]
[BlackElo "2760"]
[Result "1/2-1/2"]
[Round "06"]
[TimeControl "180+2"]
[Date "2023.02.07"]
[WhiteClock "0:01:36"]
[BlackClock "0:02:02"]

1. e4 {[%clk 0:03:00]}  c5 {[%clk 0:02:59]} 2. Nf3 {[%clk 0:02:59]}  d6 {[%clk 0:02:59]} 3. d4 {[%clk 0:02:58]}  cxd4 {[%clk 0:03:00]} 4. Nxd4 {[%clk 0:02:59]}  Nf6 {[%clk 0:03:00]} 5. Nc3 {[%clk 0:02:59]}  a6 {[%clk 0:03:01]} 6. Be3 {[%clk 0:02:59]}  Ng4 {[%clk 0:03:00]} 7. Bc1 {[%clk 0:02:59]}  Nc6 {[%clk 0:02:58]} 8. Be2 {[%clk 0:02:58]}  Nf6 {[%clk 0:02:58]} 9. Be3 {[%clk 0:02:57]}  e6 {[%clk 0:02:56]} 10. Qd2 {[%clk 0:02:49]}  Be7 {[%clk 0:02:51]} 11. f4 {[%clk 0:02:49]}  O-O {[%clk 0:02:47]} 12. O-O-O {[%clk 0:02:48]}  e5 {[%clk 0:02:44]} 13. Nxc6 {[%clk 0:02:34]}  bxc6 {[%clk 0:02:45]} 14. fxe5 {[%clk 0:02:34]}  dxe5 {[%clk 0:02:46]} 15. Qxd8 {[%clk 0:02:34]}  Rxd8 {[%clk 0:02:45]} 16. Rxd8+ {[%clk 0:02:32]}  Bxd8 {[%clk 0:02:46]} 17. Rd1 {[%clk 0:02:24]}  Be6 {[%clk 0:02:22]} 18. Rd6 {[%clk 0:01:59]}  Bd7 {[%clk 0:02:20]} 19. h3 {[%clk 0:01:53]}  Bc7 {[%clk 0:02:14]} 20. Rd1 {[%clk 0:01:48]}  Be6 {[%clk 0:02:12]} 21. Bf3 {[%clk 0:01:40]}  h6 {[%clk 0:02:06]} 22. Na4 {[%clk 0:01:38]}  Nd7 {[%clk 0:02:05]} 23. b3 {[%clk 0:01:36]}  Kf8 {[%clk 0:02:02]} 1/2-1/2


[Site "https://www.chess.com"]